fUST/lending_fUST_20240311
["ID","MTS","AMOUNT","RATE_DAILY","PERIOD"]
[318241229,1710125433397,-682.44741678,0.00023998,2]
[318241230,1710125433406,-157.92057386,0.00023998,2]
[318241231,1710125433415,-875.62664817,0.00023998,2]
[318241232,1710125433424,-1674.6909737,0.00023998,2]
[318241233,1710125433433,-931.78677863,0.00023998,2]
[318241234,1710125433443,-500.0,0.00023999,2]
[318241235,1710125433450,-500.0,0.00023999,2]
[318241236,1710125433462,-454.9,0.00023999,2]
[318241237,1710125433471,-2799.83371204,0.00024,10]
[318241238,1710125433486,-12936.47,0.00024,10]
[318241356,1710125440808,-528.43918196,0.000239,2]
[318241358,1710125440818,-472.85750604,0.000239,2]
[318241703,1710125444508,-2821.66475524,0.000239,2]
[318241706,1710125444518,-15089.13586196,0.00024,10]
[318241940,1710125447036,-1087.72752187,0.00024,10]
[318241942,1710125447048,-253.19,0.00024,10]
[318242676,1710125625359,51984.38127377,0.0002,2]
[318242677,1710125657939,336.22114626,0.0002,2]
[318242678,1710126396333,341.46319663,0.000189,2]
[318242679,1710126404927,151.65619177,0.00018806,2]
[318242743,1710126631985,-294.83074187,0.0002149,2]
[318242745,1710126631994,-167.2483474,0.00021491,2]
[318242747,1710126632003,-175.999696,0.00021587,2]
[318242749,1710126632013,-607.64905388,0.00021602,2]
[318242751,1710126632022,-325.15962166,0.00021603,2]
[318242753,1710126632031,-1661.20934555,0.00021962,2]
[318242830,1710126638026,-605.82635265,0.00021962,2]
[318242831,1710126638036,-400.37428289,0.00021999,2]
[318242863,1710126643010,-278.22698821,0.00021999,2]
[318242864,1710126643020,-572.0,0.00022,2]
[318242865,1710126643029,-403.547201,0.00022029,2]
[318242866,1710126643038,-572.0,0.00022192,2]
[318242867,1710126643047,-173.2729708,0.00022672,2]
[318242868,1710126643056,-326.37097226,0.00022903,2]
[318242869,1710126643065,-572.0,0.00023014,2]
[318242870,1710126643075,-244.03400003,0.0002388,2]
[318242871,1710126643084,-199.07408248,0.00023899,2]
[318242872,1710126643095,-341.46319663,0.000239,2]
[318242873,1710126643104,-155.61542269,0.00023998,2]
[318242874,1710126643112,-238.88134012,0.00023998,2]
[318242875,1710126643122,-2024.2811393,0.00023998,2]
[318242876,1710126643131,-324.21878164,0.00023998,2]
[318242877,1710126643140,-163.35553047,0.00023998,2]
[318242878,1710126643150,-1167.85800124,0.00023998,7]
[318242891,1710126659397,1904.81970813,0.00018806,2]
[318242892,1710126950328,25084.69120043,0.00018806,2]
[318242894,1710127206271,7916.54081274,0.00018806,2]
[318242921,1710127602374,304.17043257,0.000189,2]
[318242959,1710127832941,-321.99580067,0.000213,2]
[318242960,1710127832952,-928.63688525,0.000213,2]
[318242961,1710127832961,-607.64905388,0.00021301,2]
[318242962,1710127832971,-155.14428418,0.00021302,2]
[318242963,1710127832981,-177.259189,0.0002134,2]
[318242964,1710127832991,-370.749018,0.00021426,2]
[318242965,1710127833001,-189.0,0.00022,2]
[318242966,1710127833012,-152.67728014,0.00022,2]
[318242967,1710127833023,-160.0,0.00022175,2]
[318242968,1710127833034,-160.0,0.00022449,2]
[318242969,1710127833045,-160.0,0.00022723,2]
[318242970,1710127833056,-160.0,0.00022997,2]
[318242971,1710127833066,-164.24411895,0.00022999,2]
[318242972,1710127833078,-500.0,0.00022999,2]
[318242973,1710127833090,-480.77137373,0.00022999,2]
[318242974,1710127833100,-179.53838164,0.00022999,2]
[318242975,1710127833109,-200.0,0.00022999,2]
[318242976,1710127833119,-82340.0,0.00023,2]
[318242977,1710127833129,-189.0,0.00023014,2]
[318242978,1710127833140,-162.0,0.00023271,2]
[318242979,1710127833151,-527.32,0.00023561,2]
[318242980,1710127833163,-527.32,0.00023561,2]
[318242981,1710127833175,-500.0,0.00023561,2]
[318242982,1710127833186,-500.0,0.00023561,2]
[318242983,1710127833197,-500.0,0.00023561,2]
[318242984,1710127833206,-500.0,0.00023561,2]
[318242985,1710127833218,-153.0,0.00023678,2]
[318242986,1710127833227,-153.0,0.00023678,2]
[318242987,1710127833237,-153.0,0.00023678,2]
[318242988,1710127833246,-384.8753485,0.00023878,2]
[318242989,1710127833256,-527.32,0.00023899,2]
[318242990,1710127833268,-500.0,0.00023899,2]
[318242991,1710127833277,-500.0,0.00023899,2]
[318242992,1710127833288,-496.15095433,0.00023899,2]
[318242993,1710127833298,-60820.52190671,0.000239,2]
[318242994,1710127833308,-304.17043257,0.000239,2]
[318242995,1710127833319,-1000.0,0.00023901,2]
[318242996,1710127833330,-1000.0,0.00023972,2]
[318242997,1710127833343,-500.0,0.00023973,2]
[318242998,1710127833353,-8245.70720381,0.00023974,2]
[318242999,1710127833363,-527.32,0.00023996,2]
[318243000,1710127833373,-500.0,0.00023996,2]
[318243001,1710127833382,-500.0,0.00023997,2]
[318243002,1710127833391,-300.94057644,0.00023997,2]
[318243003,1710127833401,-20885.67189193,0.00023998,7]
[318243004,1710127833412,-295.63072122,0.00023998,2]
[318243005,1710127833422,-195.03563748,0.00023998,2]
[318243006,1710127833431,-269.93890314,0.00023998,2]
[318243007,1710127833441,-1668.60545366,0.00023998,2]
[318243008,1710127833450,-157.35216109,0.00023998,2]
[318243009,1710127833459,-560.29128655,0.00023998,2]
[318243010,1710127833469,-875.62664817,0.00023998,2]
[318243011,1710127833478,-155.15360207,0.00023998,2]
[318243012,1710127833488,-178.98969847,0.00023998,2]
[318243013,1710127833497,-395.69469991,0.00023998,2]
[318243014,1710127833506,-155.14428418,0.00023998,2]
[318243015,1710127833516,-527.32,0.00023998,2]
[318243016,1710127833525,-527.32,0.00023998,2]
[318243017,1710127833534,-500.0,0.00023998,2]
[318243018,1710127833544,-500.0,0.00023998,2]
[318243019,1710127833554,-3911.37,0.00023999,2]
[318243020,1710127833563,-3911.37,0.00023999,2]
[318243021,1710127833573,-698.05740977,0.00023999,2]
[318243061,1710127838192,-3213.31259023,0.00023999,2]
[318243062,1710127838203,-3645.96328597,0.00023999,2]
[318243063,1710127838216,-265.40671403,0.00023999,2]
[318243064,1710127838225,-3911.37,0.00023999,2]
[318243065,1710127838237,-1613.77328598,0.00023999,2]
[318243066,1710127838249,-2201.7564872,0.00023999,2]
[318243084,1710127840103,-185.374509,0.00023712,2]
[318243085,1710127840113,-95.84022682,0.00023999,2]
[318243086,1710127840122,-3911.37,0.00023999,2]
[318243087,1710127840131,-3911.37,0.00023999,2]
[318243088,1710127840140,-3911.37,0.00023999,2]
[318243089,1710127840148,-3911.37,0.00023999,2]
[318243090,1710127840158,-527.32,0.00023999,2]
[318243091,1710127840167,-527.32,0.00023999,2]
[318243092,1710127840177,-527.32,0.00023999,2]
[318243093,1710127840187,-527.32,0.00023999,2]
[318243094,1710127840198,-527.32,0.00023999,2]
[318243095,1710127840208,-527.32,0.00023999,2]
[318243096,1710127840218,-527.32,0.00023999,2]
[318243097,1710127840227,-527.32,0.00023999,2]
[318243098,1710127840236,-527.32,0.00023999,2]
[318243099,1710127840246,-527.32,0.00023999,2]
[318243100,1710127840345,-527.32,0.00023999,2]
[318243101,1710127840355,-527.32,0.00023999,2]
[318243102,1710127840364,-527.32,0.00023999,2]
[318243103,1710127840373,-527.32,0.00023999,2]
[318243104,1710127840382,-527.32,0.00023999,2]
[318243105,1710127840391,-527.32,0.00023999,2]
[318243106,1710127840400,-80.76739308,0.00023999,2]
[318243113,1710127843215,-446.55260692,0.00023999,2]
[318243114,1710127843226,-527.32,0.00023999,2]
[318243115,1710127843235,-560.19060425,0.00023999,2]
[318243116,1710127843244,-10436.58932326,0.00024,10]
[318243117,1710127843256,-2301.94430708,0.00024,10]
[318243137,1710127855691,155.2500173,0.0002,2]
[318243138,1710127862106,155.14428418,0.0002,2]
[318243139,1710127864465,79395.9394749,0.000189,2]
[318243140,1710127884057,155.14428418,0.0002,2]
[318243141,1710127896080,188.2142691,0.0002,5]
[318243142,1710127908050,155.14428418,0.0002,2]
[318243143,1710127926176,259.13585841,0.0002,2]
[318243145,1710128807829,271.63130472,0.000189,2]
[318243288,1710129032382,-404.59380981,0.00020916,2]
[318243290,1710129032392,-928.63688525,0.00020917,2]
[318243292,1710129032402,-607.64905388,0.00020917,2]
[318243294,1710129032411,-269.23239559,0.00020918,2]
[318243296,1710129032421,-310.59834622,0.00020925,2]
[318243298,1710129032430,-500.60278612,0.00021,2]
[318243300,1710129032439,-11755.83245906,0.00021357,2]
[318243302,1710129032448,-181.245409,0.00021383,2]
[318243304,1710129032458,-355.850015,0.00021433,2]
[318243306,1710129032467,-1500.0,0.00021907,2]
[318243308,1710129032476,-176.0,0.00022,2]
[318243310,1710129032486,-8248.67469,0.00022,2]
[318243312,1710129032495,-155.14428418,0.00022174,2]
[318243314,1710129032504,-395.69469991,0.000222,2]
[318243316,1710129032513,-190.0,0.00022202,2]
[318243318,1710129032522,-1500.0,0.00022217,2]
[318243320,1710129032531,-190.0,0.00022476,2]
[318243322,1710129032540,-1500.0,0.00022526,2]
[318243324,1710129032551,-192.0,0.0002275,2]
[318243326,1710129032564,-1500.0,0.00022836,2]
[318243328,1710129032573,-5020.65529064,0.00022903,2]
[318243330,1710129032586,-176.0,0.00023014,2]
[318243332,1710129032596,-1500.0,0.00023146,2]
[318243334,1710129032604,-1500.0,0.00023456,2]
[318243336,1710129032613,-500.0,0.00023561,2]
[318243338,1710129032622,-500.0,0.00023561,2]
[318243340,1710129032632,-367.84059644,0.00023561,2]
[318243342,1710129032641,-500.0,0.00023561,2]
[318243344,1710129032650,-505.98929925,0.00023561,2]
[318243346,1710129032659,-523.47840185,0.00023561,30]
[318243348,1710129032668,-501.8176683,0.00023561,2]
[318243350,1710129032677,-503.22989668,0.00023561,2]
[318243352,1710129032686,-150.848,0.00023728,2]
[318243354,1710129032695,-268.32645838,0.0002375,2]
[318243355,1710129032704,-500.0,0.00023765,2]
[318243356,1710129032714,-1500.0,0.00023766,2]
[318243358,1710129032723,-1000.0,0.00023785,2]
[318243359,1710129032732,-500.0,0.00023894,2]
[318243360,1710129032742,-500.0,0.00023894,2]
[318243361,1710129032751,-500.0,0.00023894,2]
[318243362,1710129032760,-289.31689637,0.00023894,2]
[318243363,1710129032769,-500.0,0.00023894,2]
[318243364,1710129032778,-181.96056118,0.00023894,2]
[318243365,1710129032787,-500.0,0.00023894,2]
[318243366,1710129032796,-500.0,0.00023894,2]
[318243367,1710129032806,-11022.23,0.00023895,2]
[318243368,1710129032815,-11022.23,0.00023895,2]
[318243369,1710129032824,-500.0,0.00023895,2]
[318243370,1710129032836,-500.0,0.00023895,2]
[318243371,1710129032845,-500.0,0.00023895,2]
[318243372,1710129032854,-500.0,0.00023895,2]
[318243373,1710129032864,-500.0,0.00023895,2]
[318243374,1710129032873,-500.0,0.00023895,2]
[318243375,1710129032882,-500.24692009,0.00023895,2]
[318243376,1710129032891,-500.0,0.00023896,2]
[318243377,1710129032900,-500.0,0.00023896,2]
[318243378,1710129032908,-500.0,0.00023896,2]
[318243379,1710129032917,-500.0,0.00023896,2]
[318243380,1710129032927,-500.0,0.00023896,2]
[318243381,1710129032935,-500.0,0.00023896,2]
[318243382,1710129032945,-500.0,0.00023896,2]
[318243383,1710129032954,-500.0,0.00023896,2]
[318243384,1710129032963,-500.0,0.00023896,2]
[318243385,1710129032972,-500.0,0.00023896,2]
[318243386,1710129032981,-500.0,0.00023896,2]
[318243387,1710129032990,-500.0,0.00023896,2]
[318243388,1710129033000,-500.0,0.00023896,2]
[318243389,1710129033009,-500.0,0.00023896,2]
[318243390,1710129033020,-502.53152892,0.00023896,2]
[318243391,1710129033030,-2974.8,0.00023896,2]
[318243392,1710129033039,-2974.8,0.00023896,2]
[318243393,1710129033048,-500.0,0.00023896,2]
[318243394,1710129033057,-500.0,0.00023896,2]
[318243395,1710129033067,-500.0,0.00023896,2]
[318243396,1710129033076,-500.0,0.00023896,2]
[318243397,1710129033087,-500.0,0.00023896,2]
[318243398,1710129033096,-11022.23,0.00023896,2]
[318243399,1710129033106,-500.0,0.00023896,2]
[318243400,1710129033115,-500.0,0.00023896,2]
[318243401,1710129033124,-500.0,0.00023896,2]
[318243402,1710129033133,-500.0,0.00023896,2]
[318243403,1710129033143,-501.12562533,0.00023896,2]
[318243404,1710129033152,-155.25894032,0.00023896,2]
[318243405,1710129033162,-151.70444216,0.00023896,2]
[318243406,1710129033171,-500.0,0.00023896,2]
[318243407,1710129033180,-500.0,0.00023896,2]
[318243408,1710129033189,-166.53658664,0.00023896,2]
[318243409,1710129033198,-500.0,0.00023896,2]
[318243410,1710129033207,-336.07912632,0.00023896,2]
[318243411,1710129033279,-500.0,0.00023896,2]
[318243412,1710129033305,-500.0,0.00023896,2]
[318243413,1710129033314,-500.0,0.00023896,2]
[318243414,1710129033323,-500.0,0.00023896,2]
[318243415,1710129033334,-500.0,0.00023896,2]
[318243416,1710129033343,-500.0,0.00023896,2]
[318243417,1710129033353,-500.0,0.00023896,2]
[318243418,1710129033362,-500.0,0.00023896,2]
[318243419,1710129033371,-364.23088152,0.00023896,2]
[318243420,1710129033380,-500.0,0.00023896,2]
[318243421,1710129033390,-500.0,0.00023896,2]
[318243422,1710129033399,-500.0,0.00023896,2]
[318243423,1710129033407,-500.0,0.00023896,2]
[318243424,1710129033417,-290.55541988,0.00023897,2]
[318243425,1710129033426,-500.0,0.00023897,2]
[318243426,1710129033435,-500.0,0.00023897,2]
[318243427,1710129033444,-542.37742451,0.00023897,2]
[318243428,1710129033453,-500.0,0.00023897,2]
[318243429,1710129033462,-500.0,0.00023897,2]
[318243430,1710129033471,-500.0,0.00023897,2]
[318243431,1710129033480,-500.0,0.00023897,2]
[318243432,1710129033490,-206.240678,0.00023897,2]
[318243433,1710129033499,-500.0,0.00023897,2]
[318243434,1710129033508,-500.0,0.00023897,2]
[318243435,1710129033518,-414.60092895,0.00023897,2]
[318243436,1710129033527,-206.240678,0.00023897,2]
[318243437,1710129033536,-500.0,0.00023897,2]
[318243438,1710129033545,-500.0,0.00023897,2]
[318243439,1710129033555,-500.0,0.00023897,2]
[318243440,1710129033564,-2974.8,0.00023897,2]
[318243441,1710129033577,-2974.8,0.00023897,2]
[318243442,1710129033587,-2974.8,0.00023897,2]
[318243443,1710129033597,-500.0,0.00023897,2]
[318243444,1710129033606,-151.0,0.00023897,2]
[318243445,1710129033614,-500.0,0.00023897,2]
[318243446,1710129033624,-503.60145256,0.00023897,2]
[318243447,1710129033634,-500.0,0.00023897,2]
[318243448,1710129033643,-11022.23,0.00023897,2]
[318243449,1710129033653,-11022.23,0.00023897,2]
[318243450,1710129033662,-151.0,0.00023897,2]
[318243451,1710129033671,-155.470172,0.00023897,2]
[318243452,1710129033680,-500.0,0.00023897,2]
[318243453,1710129033689,-594.06702264,0.00023897,2]
[318243454,1710129033698,-500.0,0.00023897,2]
[318243455,1710129033707,-500.0,0.00023897,2]
[318243456,1710129033717,-299.21675608,0.00023897,2]
[318243457,1710129033726,-500.0,0.00023897,2]
[318243458,1710129033736,-500.0,0.00023897,2]
[318243459,1710129033745,-151.0,0.00023897,2]
[318243460,1710129033754,-151.0,0.00023897,2]
[318243461,1710129033763,-235.647421,0.00023898,2]
[318243462,1710129033772,-235.647421,0.00023898,2]
[318243463,1710129033781,-941.608452,0.00023898,2]
[318243464,1710129033791,-941.608452,0.00023898,2]
[318243465,1710129033800,-941.608452,0.00023898,2]
[318243466,1710129033809,-941.608452,0.00023898,2]
[318243467,1710129033819,-189.74089,0.00023898,2]
[318243468,1710129033828,-189.74089,0.00023898,2]
[318243469,1710129033838,-189.74089,0.00023898,2]
[318243470,1710129033847,-189.74089,0.00023898,2]
[318243471,1710129033856,-500.0,0.00023898,2]
[318243472,1710129033866,-500.0,0.00023898,2]
[318243473,1710129033876,-206.240678,0.00023898,2]
[318243474,1710129033885,-206.240678,0.00023898,2]
[318243475,1710129033894,-151.613802,0.00023898,2]
[318243476,1710129033903,-11022.23,0.00023898,2]
[318243477,1710129033912,-151.0,0.00023898,2]
[318243478,1710129033922,-500.0,0.00023898,2]
[318243479,1710129033931,-152.794819,0.00023898,2]
[318243480,1710129033940,-87481.59825493,0.00023898,2]
[318243481,1710129033949,-500.0,0.00023899,2]
[318243482,1710129033959,-623.64186601,0.00023899,2]
[318243483,1710129033967,-623.64186601,0.00023899,2]
[318243484,1710129033976,-623.64186601,0.000239,2]
[318243485,1710129033986,-623.64186601,0.000239,2]
[318243486,1710129033994,-623.64186601,0.000239,2]
[318243487,1710129034003,-623.64186601,0.000239,2]
[318243488,1710129034012,-623.64186601,0.000239,2]
[318243489,1710129034024,-271.63130472,0.000239,2]
[318243490,1710129034033,-629.31713921,0.00023919,2]
[318243491,1710129034042,-500.0,0.00023973,2]
[318243492,1710129034054,-205.37424489,0.00023974,2]
[318243493,1710129034063,-500.0,0.00023995,2]
[318243494,1710129034072,-2974.8,0.00023995,2]
[318243495,1710129034081,-941.608452,0.00023996,2]
[318243496,1710129034090,-941.608452,0.00023996,2]
[318243497,1710129034099,-189.74089,0.00023996,2]
[318243498,1710129034108,-189.74089,0.00023996,2]
[318243499,1710129034116,-500.0,0.00023996,2]
[318243500,1710129034125,-500.0,0.00023996,2]
[318243501,1710129034134,-206.240678,0.00023996,2]
[318243502,1710129034144,-206.240678,0.00023996,2]
[318243503,1710129034153,-500.0,0.00023996,2]
[318243504,1710129034163,-2974.8,0.00023996,2]
[318243505,1710129034171,-11022.23,0.00023996,2]
[318243506,1710129034180,-11022.23,0.00023996,2]
[318243507,1710129034189,-152.334169,0.00023996,2]
[318243508,1710129034198,-500.0,0.00023996,2]
[318243509,1710129034207,-500.0,0.00023996,2]
[318243510,1710129034216,-235.647421,0.00023997,2]
[318243511,1710129034225,-235.647421,0.00023997,2]
[318243512,1710129034236,-235.647421,0.00023997,2]
[318243513,1710129034245,-235.647421,0.00023997,2]
[318243514,1710129034255,-941.608452,0.00023997,2]
[318243515,1710129034264,-941.608452,0.00023997,2]
[318243516,1710129034273,-189.74089,0.00023997,2]
[318243517,1710129034282,-189.74089,0.00023997,2]
[318243518,1710129034290,-500.0,0.00023997,2]
[318243519,1710129034300,-500.0,0.00023997,2]
[318243520,1710129034309,-500.0,0.00023997,2]
[318243521,1710129034318,-500.0,0.00023997,2]
[318243522,1710129034326,-500.0,0.00023997,2]
[318243523,1710129034337,-500.0,0.00023997,2]
[318243524,1710129034347,-206.240678,0.00023997,2]
[318243525,1710129034355,-206.240678,0.00023997,2]
[318243526,1710129034364,-500.0,0.00023997,2]
[318243527,1710129034374,-500.0,0.00023997,2]
[318243528,1710129034383,-646.61228317,0.00023997,2]
[318243529,1710129034392,-2974.8,0.00023997,2]
[318243530,1710129034401,-2974.8,0.00023997,2]
[318243531,1710129034410,-2974.8,0.00023997,2]
[318243532,1710129034419,-11022.23,0.00023997,2]
[318243533,1710129034429,-11022.23,0.00023997,2]
[318243534,1710129034438,-500.0,0.00023997,2]
[318243535,1710129034448,-538.32209982,0.00023997,2]
[318243536,1710129034457,-322.43314117,0.00023998,2]
[318243537,1710129034466,-5397.70442017,0.00023998,2]
[318243538,1710129034475,-743.98973532,0.00023998,2]
[318243539,1710129034484,-238.79913038,0.00023998,2]
[318243540,1710129034494,-300.34470957,0.00023998,2]
[318243541,1710129034503,-155.22464384,0.00023998,2]
[318243542,1710129034512,-209.45753833,0.00023998,2]
[318243543,1710129034521,-494.5925455,0.00023998,2]
[318243544,1710129034530,-10318.55467519,0.00023998,2]
[318243545,1710129034539,-706.78958963,0.00023998,2]
[318243546,1710129034549,-155.88805604,0.00023998,2]
[318243547,1710129034562,-310.00057498,0.00023998,2]
[318243548,1710129034571,-430.53002138,0.00023998,2]
[318243549,1710129034581,-818.32427999,0.00023998,2]
[318243550,1710129034590,-672.73710296,0.00023998,2]
[318243551,1710129034601,-316.55543465,0.00023998,2]
[318243552,1710129034610,-151.0,0.00023998,2]
[318243553,1710129034620,-500.0,0.00023998,2]
[318243554,1710129034629,-500.0,0.00023998,2]
[318243555,1710129034639,-151.0,0.00023998,2]
[318243556,1710129034650,-151.0,0.00023998,2]
[318243557,1710129034660,-152.019527,0.00023998,2]
[318243558,1710129034669,-235.647421,0.00023998,2]
[318243559,1710129034678,-235.647421,0.00023998,2]
[318243560,1710129034688,-235.647421,0.00023998,2]
[318243561,1710129034697,-235.647421,0.00023998,2]
[318243562,1710129034707,-235.647421,0.00023998,2]
[318243563,1710129034716,-235.647421,0.00023998,2]
[318243564,1710129034726,-235.647421,0.00023998,2]
[318243565,1710129034736,-235.647421,0.00023998,2]
[318243566,1710129034746,-204.56611262,0.00023998,2]
[318243567,1710129034755,-199.77352372,0.00023998,2]
[318243568,1710129034765,-1951.29003649,0.00023998,2]
[318243569,1710129034775,-172.33421696,0.00023998,2]
[318243570,1710129034785,-941.608452,0.00023998,2]
[318243571,1710129034795,-941.608452,0.00023998,2]
[318243572,1710129034804,-941.608452,0.00023998,2]
[318243573,1710129034813,-941.608452,0.00023998,2]
[318243574,1710129034823,-941.608452,0.00023998,2]
[318243575,1710129034833,-941.608452,0.00023998,2]
[318243576,1710129034843,-941.608452,0.00023998,2]
[318243577,1710129034852,-941.608452,0.00023998,2]
[318243578,1710129034862,-189.74089,0.00023998,2]
[318243579,1710129034871,-189.74089,0.00023998,2]
[318243580,1710129034881,-189.74089,0.00023998,2]
[318243581,1710129034890,-189.74089,0.00023998,2]
[318243582,1710129034900,-189.74089,0.00023998,2]
[318243583,1710129034909,-189.74089,0.00023998,2]
[318243584,1710129034918,-189.74089,0.00023998,2]
[318243585,1710129034928,-189.74089,0.00023998,2]
[318243586,1710129034937,-500.0,0.00023998,2]
[318243587,1710129034946,-500.0,0.00023998,2]
[318243588,1710129034956,-500.0,0.00023998,2]
[318243589,1710129034965,-500.0,0.00023998,2]
[318243590,1710129034975,-500.0,0.00023998,2]
[318243591,1710129034984,-500.0,0.00023998,2]
[318243592,1710129034993,-322.02543239,0.00023998,2]
[318243593,1710129035002,-206.240678,0.00023998,2]
[318243594,1710129035012,-206.240678,0.00023998,2]
[318243595,1710129035021,-206.240678,0.00023998,2]
[318243596,1710129035030,-206.240678,0.00023998,2]
[318243597,1710129035039,-206.240678,0.00023998,2]
[318243598,1710129035049,-206.240678,0.00023998,2]
[318243599,1710129035059,-206.240678,0.00023998,2]
[318243600,1710129035068,-206.240678,0.00023998,2]
[318243601,1710129035077,-2974.8,0.00023998,2]
[318243602,1710129035088,-2974.8,0.00023998,2]
[318243603,1710129035098,-2974.8,0.00023998,2]
[318243604,1710129035107,-2974.8,0.00023998,2]
[318243605,1710129035117,-11022.23,0.00023998,2]
[318243606,1710129035127,-11022.23,0.00023998,2]
[318243607,1710129035136,-11022.23,0.00023998,2]
[318243608,1710129035147,-11022.23,0.00023998,2]
[318243609,1710129035157,-1847.2,0.00023998,2]
[318243610,1710129035166,-1847.2,0.00023998,2]
[318243611,1710129035176,-1847.2,0.00023998,2]
[318243612,1710129035186,-1847.2,0.00023998,2]
[318243613,1710129035195,-1847.2,0.00023998,2]
[318243614,1710129035205,-1847.2,0.00023998,2]
[318243615,1710129035215,-1847.2,0.00023998,2]
[318243616,1710129035225,-1847.2,0.00023998,2]
[318243617,1710129035235,-325.05437374,0.00023999,2]
[318243618,1710129035245,-294.73459333,0.00023999,2]
[318243619,1710129035256,-538.58014094,0.00023999,2]
[318243620,1710129035266,-214.35201083,0.00023999,2]
[318243621,1710129035276,-1667.4648312,0.00023999,2]
[318243622,1710129035286,-155.35304833,0.00023999,2]
[318243623,1710129035296,-151.0,0.00023999,2]
[318243624,1710129035306,-193.657967,0.00023999,2]
[318243625,1710129035315,-500.0,0.00023999,2]
[318243626,1710129035326,-500.0,0.00023999,2]
[318243627,1710129035336,-500.0,0.00023999,2]
[318243628,1710129035349,-500.0,0.00023999,2]
[318243629,1710129035360,-500.0,0.00023999,2]
[318243630,1710129035370,-500.0,0.00023999,2]
[318243631,1710129035381,-500.0,0.00023999,2]
[318243632,1710129035390,-355.9854356,0.00023999,2]
[318243633,1710129035400,-151.0,0.00023999,2]
[318243634,1710129035410,-151.0,0.00023999,2]
[318243635,1710129035419,-236.042175,0.00023999,2]
[318243636,1710129035429,-179.50423896,0.00023999,2]
[318243637,1710129035438,-235.647421,0.00023999,2]
[318243638,1710129035448,-235.647421,0.00023999,2]
[318243639,1710129035457,-235.647421,0.00023999,2]
[318243640,1710129035466,-235.647421,0.00023999,2]
[318243641,1710129035476,-235.647421,0.00023999,2]
[318243642,1710129035485,-235.647423,0.00023999,2]
[318243643,1710129035495,-941.608452,0.00023999,2]
[318243644,1710129035505,-941.608452,0.00023999,2]
[318243645,1710129035515,-941.608452,0.00023999,2]
[318243646,1710129035524,-941.608451,0.00023999,2]
[318243647,1710129035534,-189.74089,0.00023999,2]
[318243648,1710129035543,-189.74089,0.00023999,2]
[318243649,1710129035553,-189.74089,0.00023999,2]
[318243650,1710129035562,-189.740888,0.00023999,2]
[318243651,1710129035573,-500.0,0.00023999,2]
[318243652,1710129035583,-507.08449533,0.00023999,2]
[318243653,1710129035593,-206.240678,0.00023999,2]
[318243654,1710129035603,-206.240678,0.00023999,2]
[318243655,1710129035613,-206.240678,0.00023999,2]
[318243656,1710129035622,-206.240669,0.00023999,2]
[318243657,1710129035632,-2974.8,0.00023999,2]
[318243658,1710129035641,-2974.8,0.00023999,2]
[318243659,1710129035729,-2974.8,0.00023999,2]
[318243660,1710129035738,-2974.8,0.00023999,2]
[318243661,1710129035748,-2974.8,0.00023999,2]
[318243662,1710129035758,-2974.8,0.00023999,2]
[318243663,1710129035768,-2974.8,0.00023999,2]
[318243664,1710129035777,-2974.8,0.00023999,2]
[318243665,1710129035787,-2974.8,0.00023999,2]
[318243666,1710129035796,-2975.02047855,0.00023999,2]
[318243667,1710129035805,-11022.23,0.00023999,2]
[318243668,1710129035815,-11022.23,0.00023999,2]